[Event "*** Titled Tuesday Blitz"]
[Site "Chess.com"]
[Date "2020.04.14"]
[Round "7"]
[White "JakubPulpan"]
[Black "Mr_Sinigami"]
[Result "1-0"]
[WhiteElo "2758"]
[BlackElo "2582"]
[TimeControl "180+1"]
[EndTime "11:16:41 PDT"]
[Termination "JakubPulpan won by resignation"]

1. Nf3 {[%clk 0:02:53.6]} 1... Nf6 {[%clk 0:02:59]} 2. b3 {[%clk 0:02:37.6]}
2... d5 {[%clk 0:02:53.3]} 3. Bb2 {[%clk 0:02:34.7]} 3... g6 {[%clk 0:02:53.4]}
4. g3 {[%clk 0:02:29.2]} 4... Bg7 {[%clk 0:02:53.4]} 5. c4 {[%clk 0:02:28.6]}
5... c6 {[%clk 0:02:45.1]} 6. Bg2 {[%clk 0:02:26.9]} 6... O-O {[%clk 0:02:45.1]}
7. O-O {[%clk 0:02:24.7]} 7... a5 {[%clk 0:02:38.6]} 8. cxd5 {[%clk 0:02:16.4]}
8... cxd5 {[%clk 0:02:35.8]} 9. a3 {[%clk 0:01:45.6]} 9... Nc6 {[%clk
0:02:35.1]} 10. Nc3 {[%clk 0:01:31.7]} 10... d4 {[%clk 0:02:18.3]} 11. Nb5
{[%clk 0:01:30.5]} 11... e5 {[%clk 0:02:15.1]} 12. a4 {[%clk 0:01:28.9]} 12...
Nd5 {[%clk 0:01:59.6]} 13. d3 {[%clk 0:01:24.7]} 13... Be6 {[%clk 0:01:48.3]}
14. Rc1 {[%clk 0:01:15.3]} 14... Ndb4 {[%clk 0:01:44.7]} 15. Nd2 {[%clk
0:01:08.1]} 15... Bd5 {[%clk 0:01:36.6]} 16. Bxd5 {[%clk 0:01:04.8]} 16... Nxd5
{[%clk 0:01:37.5]} 17. Ne4 {[%clk 0:00:59.9]} 17... Ndb4 {[%clk 0:01:27.7]} 18.
Ba3 {[%clk 0:00:54]} 18... f5 {[%clk 0:01:13.2]} 19. Nc5 {[%clk 0:00:39.7]}
19... Qe7 {[%clk 0:01:03.1]} 20. Qd2 {[%clk 0:00:16.4]} 20... Rad8 {[%clk
0:01:02.6]} 21. Rc4 {[%clk 0:00:07.5]} 21... e4 {[%clk 0:00:28.1]} 22. dxe4
{[%clk 0:00:07]} 22... fxe4 {[%clk 0:00:29]} 23. e3 {[%clk 0:00:03.4]} 23...
dxe3 {[%clk 0:00:08.2]} 24. Qxe3 {[%clk 0:00:04.3]} 24... Qf7 {[%clk 0:00:08.3]}
25. Nxe4 {[%clk 0:00:04.3]} 25... Rd5 {[%clk 0:00:07.2]} 26. Ng5 {[%clk
0:00:04.9]} 26... Qf5 {[%clk 0:00:06.7]} 27. Qe6+ {[%clk 0:00:05.8]} 27... Qxe6
{[%clk 0:00:06.7]} 28. Nxe6 {[%clk 0:00:06.7]} 28... Rc8 {[%clk 0:00:06.4]} 29.
Nxg7 {[%clk 0:00:07.3]} 29... Kxg7 {[%clk 0:00:07.1]} 30. Bxb4 {[%clk
0:00:07.9]} 30... axb4 {[%clk 0:00:07]} 31. Rfc1 {[%clk 0:00:08.3]} 31... Rd3
{[%clk 0:00:06.5]} 32. Na7 {[%clk 0:00:08.5]} 32... Rc7 {[%clk 0:00:06.8]} 33.
Nxc6 {[%clk 0:00:09.2]} 33... bxc6 {[%clk 0:00:07.7]} 34. Rxc6 {[%clk
0:00:10.1]} 34... Rxc6 {[%clk 0:00:08.1]} 35. Rxc6 {[%clk 0:00:11]} 35... Rxb3
{[%clk 0:00:09]} 36. Rb6 {[%clk 0:00:11.9]} 36... Rb1+ {[%clk 0:00:08.1]} 37.
Kg2 {[%clk 0:00:12.6]} 37... h5 {[%clk 0:00:08.6]} 38. h4 {[%clk 0:00:13]} 38...
Kh6 {[%clk 0:00:08.6]} 39. Kf3 {[%clk 0:00:13.5]} 39... b3 {[%clk 0:00:08.9]}
40. Kf4 {[%clk 0:00:14]} 40... Ra1 {[%clk 0:00:09.1]} 41. Rxb3 {[%clk 0:00:14]}
41... Rxa4+ {[%clk 0:00:09.5]} 42. Ke5 {[%clk 0:00:14.9]} 42... Ra2 {[%clk
0:00:08.7]} 43. Rf3 {[%clk 0:00:14]} 43... Ra6 {[%clk 0:00:08]} 44. Ke4 {[%clk
0:00:13.5]} 44... Re6+ {[%clk 0:00:07.9]} 45. Kd3 {[%clk 0:00:13.9]} 45... Re7
{[%clk 0:00:04.1]} 46. Re3 {[%clk 0:00:14.7]} 46... Rf7 {[%clk 0:00:04]} 47. Ke2
{[%clk 0:00:15.6]} 47... Ra7 {[%clk 0:00:04.4]} 48. Kf3 {[%clk 0:00:16]} 48...
Ra4 {[%clk 0:00:04.7]} 49. Re4 {[%clk 0:00:15.7]} 49... Ra3+ {[%clk 0:00:04.9]}
50. Re3 {[%clk 0:00:16.5]} 50... Ra2 {[%clk 0:00:05.8]} 51. Rb3 {[%clk
0:00:16.7]} 51... Rc2 {[%clk 0:00:05.6]} 52. Rb6 {[%clk 0:00:16.8]} 52... Ra2
{[%clk 0:00:05.8]} 53. Kg2 {[%clk 0:00:17.2]} 53... Rc2 {[%clk 0:00:05.9]} 54.
Rf6 {[%clk 0:00:17.2]} 54... Ra2 {[%clk 0:00:05.8]} 55. Kh3 {[%clk 0:00:16.1]}
55... Kg7 {[%clk 0:00:05.7]} 56. Rf3 {[%clk 0:00:16.4]} 56... Kh6 {[%clk
0:00:06.1]} 57. Kg2 {[%clk 0:00:16.9]} 57... Rb2 {[%clk 0:00:06.3]} 58. Re3
{[%clk 0:00:17.6]} 58... Ra2 {[%clk 0:00:06.7]} 59. Kf1 {[%clk 0:00:18.2]} 59...
Rb2 {[%clk 0:00:06.9]} 60. Re2 {[%clk 0:00:18.8]} 60... Rb1+ {[%clk 0:00:07.3]}
61. Re1 {[%clk 0:00:19.4]} 61... Rb3 {[%clk 0:00:08.2]} 62. Kg2 {[%clk
0:00:19.5]} 62... Ra3 {[%clk 0:00:07.9]} 63. Re2 {[%clk 0:00:20]} 63... Rb3
{[%clk 0:00:08.2]} 64. f3 {[%clk 0:00:20.5]} 64... Ra3 {[%clk 0:00:08.2]} 65.
Kf2 {[%clk 0:00:19.6]} 65... Rb3 {[%clk 0:00:08.5]} 66. Ra2 {[%clk 0:00:20]}
66... Rc3 {[%clk 0:00:08.7]} 67. Kg2 {[%clk 0:00:20.6]} 67... Rb3 {[%clk
0:00:08.9]} 68. g4 {[%clk 0:00:19.4]} 68... hxg4 {[%clk 0:00:08.8]} 69. fxg4
{[%clk 0:00:20.3]} 69... Kh7 {[%clk 0:00:08.6]} 70. Rf2 {[%clk 0:00:19.5]} 70...
Kg7 {[%clk 0:00:08.6]} 71. Rf3 {[%clk 0:00:20]} 71... Rb7 {[%clk 0:00:08.6]} 72.
Kg3 {[%clk 0:00:20.9]} 72... Rc7 {[%clk 0:00:09]} 73. Ra3 {[%clk 0:00:21.3]}
73... Rb7 {[%clk 0:00:08.6]} 74. Ra4 {[%clk 0:00:21.5]} 74... Rb1 {[%clk
0:00:08]} 75. Ra7+ {[%clk 0:00:21.3]} 75... Kg8 {[%clk 0:00:06.1]} 76. Kf4
{[%clk 0:00:21.6]} 76... Rb5 {[%clk 0:00:06]} 77. Re7 {[%clk 0:00:22.2]} 77...
Kf8 {[%clk 0:00:04.6]} 78. Re5 {[%clk 0:00:22.5]} 78... Rb4+ {[%clk 0:00:05.1]}
79. Kg5 {[%clk 0:00:23.4]} 79... Kf7 {[%clk 0:00:04.9]} 80. Ra5 {[%clk 0:00:24]}
80... Rb7 {[%clk 0:00:03.7]} 81. Kh6 {[%clk 0:00:24.5]} 1-0

[Event "*** Titled Tuesday Blitz"]
[Site "Chess.com"]
[Date "2020.04.14"]
[Round "7"]
[White "Revnov"]
[Black "Neimar24"]
[Result "0-1"]
[WhiteElo "2760"]
[BlackElo "2571"]
[TimeControl "180+1"]
[EndTime "11:16:50 PDT"]
[Termination "Neimar24 won on time"]

1. e4 {[%clk 0:03:00.9]} 1... e6 {[%clk 0:02:58.6]} 2. Qe2 {[%clk 0:03:00.1]}
2... d5 {[%clk 0:02:58.4]} 3. exd5 {[%clk 0:03:00.3]} 3... Qxd5 {[%clk
0:02:58.8]} 4. Nf3 {[%clk 0:03:00.9]} 4... c5 {[%clk 0:02:56.1]} 5. Nc3 {[%clk
0:03:01.3]} 5... Qd8 {[%clk 0:02:55.3]} 6. g3 {[%clk 0:03:01.9]} 6... Nc6 {[%clk
0:02:54.6]} 7. Bg2 {[%clk 0:03:02.5]} 7... Nge7 {[%clk 0:02:54.2]} 8. O-O {[%clk
0:03:02.9]} 8... Nf5 {[%clk 0:02:54.2]} 9. Ne4 {[%clk 0:03:02.1]} 9... Be7
{[%clk 0:02:53]} 10. c3 {[%clk 0:03:01.8]} 10... O-O {[%clk 0:02:51.3]} 11. a3
{[%clk 0:02:59.5]} 11... b6 {[%clk 0:02:47.8]} 12. b4 {[%clk 0:02:59.2]} 12...
Bb7 {[%clk 0:02:43.4]} 13. Rd1 {[%clk 0:02:59.1]} 13... Qc7 {[%clk 0:02:36.4]}
14. Bb2 {[%clk 0:02:56.3]} 14... Rfd8 {[%clk 0:02:32.7]} 15. d3 {[%clk
0:02:49.9]} 15... cxb4 {[%clk 0:01:58.3]} 16. axb4 {[%clk 0:02:49.1]} 16... a5
{[%clk 0:01:58.8]} 17. b5 {[%clk 0:02:45.5]} 17... Ne5 {[%clk 0:01:57.6]} 18.
Nxe5 {[%clk 0:02:29.6]} 18... Qxe5 {[%clk 0:01:56.3]} 19. d4 {[%clk 0:02:29.5]}
19... Qc7 {[%clk 0:01:52.5]} 20. c4 {[%clk 0:02:28.7]} 20... Bb4 {[%clk
0:01:44.2]} 21. Rac1 {[%clk 0:02:23.8]} 21... Qe7 {[%clk 0:01:37]} 22. Ba1
{[%clk 0:02:03.3]} 22... Rac8 {[%clk 0:01:35.1]} 23. h4 {[%clk 0:02:02.4]} 23...
h6 {[%clk 0:01:33.7]} 24. Qg4 {[%clk 0:02:00.8]} 24... Bxe4 {[%clk 0:01:17.7]}
25. Bxe4 {[%clk 0:01:49.7]} 25... Nd6 {[%clk 0:01:17.2]} 26. Bd3 {[%clk
0:01:48.8]} 26... f5 {[%clk 0:01:04.6]} 27. Qe2 {[%clk 0:01:46.4]} 27... f4
{[%clk 0:01:03]} 28. Qg4 {[%clk 0:01:39.2]} 28... Rf8 {[%clk 0:01:00.3]} 29. Rf1
{[%clk 0:01:15.7]} 29... fxg3 {[%clk 0:00:43.3]} 30. fxg3 {[%clk 0:01:16.6]}
30... Rxf1+ {[%clk 0:00:42.8]} 31. Rxf1 {[%clk 0:01:15.8]} 31... Rf8 {[%clk
0:00:36.3]} 32. Rxf8+ {[%clk 0:01:00.2]} 32... Kxf8 {[%clk 0:00:35.4]} 33. Qf3+
{[%clk 0:00:51.3]} 33... Qf6 {[%clk 0:00:33.2]} 34. Qa8+ {[%clk 0:00:45.1]}
34... Ne8 {[%clk 0:00:31.6]} 35. Qc6 {[%clk 0:00:43]} 35... e5 {[%clk 0:00:25]}
36. dxe5 {[%clk 0:00:29.3]} 36... Qxc6 {[%clk 0:00:21.3]} 37. bxc6 {[%clk
0:00:30.2]} 37... Nc7 {[%clk 0:00:21.4]} 38. Bf5 {[%clk 0:00:25.1]} 38... Ke7
{[%clk 0:00:20.1]} 39. Kf2 {[%clk 0:00:25]} 39... a4 {[%clk 0:00:18.2]} 40. Ke3
{[%clk 0:00:25]} 40... a3 {[%clk 0:00:18.6]} 41. Kd3 {[%clk 0:00:25.3]} 41...
Na6 {[%clk 0:00:17.9]} 42. h5 {[%clk 0:00:22.2]} 42... Be1 {[%clk 0:00:15.3]}
43. g4 {[%clk 0:00:21.8]} 43... Bg3 {[%clk 0:00:15.3]} 44. Ke3 {[%clk
0:00:15.4]} 44... Bh4 {[%clk 0:00:11.2]} 45. Be4 {[%clk 0:00:14]} 45... Bg5+
{[%clk 0:00:11.2]} 46. Ke2 {[%clk 0:00:13.3]} 46... Bc1 {[%clk 0:00:11.8]} 47.
Kd1 {[%clk 0:00:11.3]} 47... Bb2 {[%clk 0:00:11.9]} 48. Bxb2 {[%clk 0:00:10.9]}
48... axb2 {[%clk 0:00:12.8]} 49. Kc2 {[%clk 0:00:10.9]} 49... Ke6 {[%clk
0:00:12.6]} 50. Kxb2 {[%clk 0:00:10]} 50... Kxe5 {[%clk 0:00:13.1]} 51. Bf3
{[%clk 0:00:08.3]} 51... Kf4 {[%clk 0:00:13]} 52. Bd1 {[%clk 0:00:07.1]} 52...
Ke5 {[%clk 0:00:13.3]} 53. Kc3 {[%clk 0:00:07.2]} 53... Kd6 {[%clk 0:00:13.7]}
54. Bf3 {[%clk 0:00:07.2]} 54... Nb8 {[%clk 0:00:13.3]} 55. Kd4 {[%clk
0:00:02.9]} 55... Nxc6+ {[%clk 0:00:13.4]} 56. Ke4 {[%clk 0:00:03.5]} 56... Ne5
{[%clk 0:00:11.8]} 57. Be2 {[%clk 0:00:03.9]} 57... Ke6 {[%clk 0:00:11.2]} 58.
Kf4 {[%clk 0:00:04.2]} 58... Nd7 {[%clk 0:00:10.5]} 59. Bf3 {[%clk 0:00:04.3]}
59... Nc5 {[%clk 0:00:10.5]} 60. Bd5+ {[%clk 0:00:04.2]} 60... Kf6 {[%clk
0:00:10.9]} 61. Ke3 {[%clk 0:00:04.7]} 61... Nd7 {[%clk 0:00:11.2]} 62. Ke4
{[%clk 0:00:04.2]} 62... Ne5 {[%clk 0:00:11.7]} 63. Kf4 {[%clk 0:00:04.1]} 63...
Nd3+ {[%clk 0:00:11.8]} 64. Ke4 {[%clk 0:00:04]} 64... Nc5+ {[%clk 0:00:12.3]}
65. Kf4 {[%clk 0:00:04.5]} 65... Nd3+ {[%clk 0:00:12.4]} 66. Ke4 {[%clk
0:00:04.7]} 66... Ne5 {[%clk 0:00:12.3]} 67. Kd4 {[%clk 0:00:05.1]} 67... Nxg4
{[%clk 0:00:12.1]} 68. Kc3 {[%clk 0:00:05.5]} 68... Ne3 {[%clk 0:00:11.3]} 69.
Bf3 {[%clk 0:00:04.9]} 69... Ke5 {[%clk 0:00:11.1]} 70. Kb4 {[%clk 0:00:04.9]}
70... Kf4 {[%clk 0:00:11.5]} 71. Be2 {[%clk 0:00:04.8]} 71... Nc2+ {[%clk
0:00:09.7]} 72. Kc3 {[%clk 0:00:01.5]} 72... Ne3 {[%clk 0:00:09.9]} 73. Kb4
{[%clk 0:00:02.4]} 73... Ke5 {[%clk 0:00:09.4]} 74. Kb5 {[%clk 0:00:03.3]} 74...
Kd4 {[%clk 0:00:07.9]} 75. Bf3 {[%clk 0:00:04.2]} 75... Nxc4 {[%clk 0:00:07.8]}
76. Be2 {[%clk 0:00:04.4]} 76... Nd6+ {[%clk 0:00:07]} 77. Kxb6 {[%clk
0:00:04.4]} 77... Ke5 {[%clk 0:00:07.9]} 78. Kc6 {[%clk 0:00:04.6]} 78... Ne4
{[%clk 0:00:08.8]} 79. Bd1 {[%clk 0:00:03.9]} 79... Ng3 {[%clk 0:00:09.5]} 80.
Kc5 {[%clk 0:00:03.9]} 80... Kf6 {[%clk 0:00:10.2]} 81. Kd4 {[%clk 0:00:04.3]}
81... Kg5 {[%clk 0:00:11]} 82. Ke3 {[%clk 0:00:04.8]} 82... Nxh5 {[%clk
0:00:10.5]} 83. Kf3 {[%clk 0:00:05.3]} 83... Nf4 {[%clk 0:00:10.7]} 84. Kg3
{[%clk 0:00:05.7]} 84... h5 {[%clk 0:00:11]} 85. Kf3 {[%clk 0:00:06.1]} 85... h4
{[%clk 0:00:11.3]} 86. Ke4 {[%clk 0:00:06.5]} 86... Ne6 {[%clk 0:00:09.5]} 87.
Bf3 {[%clk 0:00:06.6]} 87... Kf6 {[%clk 0:00:09]} 88. Bh1 {[%clk 0:00:06.9]}
88... g5 {[%clk 0:00:09.1]} 89. Bf3 {[%clk 0:00:06.9]} 89... Nc5+ {[%clk
0:00:08.1]} 90. Kd5 {[%clk 0:00:05.4]} 90... Ne6 {[%clk 0:00:09]} 91. Ke4 {[%clk
0:00:05.5]} 91... Nf4 {[%clk 0:00:09.2]} 92. Bg4 {[%clk 0:00:05.5]} 92... h3
{[%clk 0:00:09.2]} 93. Kf3 {[%clk 0:00:05.3]} 93... Ke5 {[%clk 0:00:08.5]} 94.
Kg3 {[%clk 0:00:05.5]} 94... Kd4 {[%clk 0:00:08.8]} 95. Bc8 {[%clk 0:00:04.9]}
95... Ke3 {[%clk 0:00:08.9]} 96. Bb7 {[%clk 0:00:04.7]} 96... Ke2 {[%clk
0:00:08.1]} 97. Kg4 {[%clk 0:00:04.9]} 97... Kf2 {[%clk 0:00:06]} 98. Bc6 {[%clk
0:00:01.8]} 98... h2 {[%clk 0:00:04.9]} 99. Bb7 {[%clk 0:00:01.2]} 99... Ng2
{[%clk 0:00:05.3]} 0-1

[Event "*** Titled Tuesday Blitz"]
[Site "Chess.com"]
[Date "2020.04.14"]
[Round "7"]
[White "Aryangholami"]
[Black "kingofthenil"]
[Result "1-0"]
[WhiteElo "2727"]
[BlackElo "2542"]
[TimeControl "180+1"]
[EndTime "11:17:13 PDT"]
[Termination "Aryangholami won on time"]

1. Nf3 {[%clk 0:03:00.9]} 1... Nf6 {[%clk 0:02:55.7]} 2. g3 {[%clk 0:03:01.8]}
2... e6 {[%clk 0:02:55.5]} 3. Bg2 {[%clk 0:03:02.7]} 3... d5 {[%clk 0:02:56.3]}
4. O-O {[%clk 0:03:03]} 4... Be7 {[%clk 0:02:57.2]} 5. b3 {[%clk 0:03:02.6]}
5... O-O {[%clk 0:02:58.1]} 6. Bb2 {[%clk 0:03:02.8]} 6... c5 {[%clk 0:02:57.6]}
7. c4 {[%clk 0:03:02.3]} 7... Nc6 {[%clk 0:02:54.8]} 8. cxd5 {[%clk 0:02:59.8]}
8... Nxd5 {[%clk 0:02:42]} 9. d4 {[%clk 0:02:59.3]} 9... Bf6 {[%clk 0:02:36.5]}
10. e4 {[%clk 0:02:58.9]} 10... Nc7 {[%clk 0:02:34.9]} 11. e5 {[%clk 0:02:56]}
11... Be7 {[%clk 0:02:34.5]} 12. Nbd2 {[%clk 0:02:51.4]} 12... cxd4 {[%clk
0:02:28.4]} 13. Ne4 {[%clk 0:02:51.4]} 13... b6 {[%clk 0:01:39.4]} 14. Nxd4
{[%clk 0:02:37]} 14... Nxd4 {[%clk 0:01:40.3]} 15. Nd6 {[%clk 0:02:25.7]} 15...
Nf5 {[%clk 0:01:15.1]} 16. Bxa8 {[%clk 0:02:08]} 16... Nxa8 {[%clk 0:01:14.1]}
17. Nxc8 {[%clk 0:02:06.8]} 17... Qxc8 {[%clk 0:01:05.8]} 18. Rc1 {[%clk
0:02:03.6]} 18... Qb7 {[%clk 0:01:02.8]} 19. Qc2 {[%clk 0:02:03.9]} 19... Bc5
{[%clk 0:00:59.7]} 20. a3 {[%clk 0:02:00.3]} 20... h5 {[%clk 0:00:52.9]} 21.
Rfd1 {[%clk 0:01:57.1]} 21... a5 {[%clk 0:00:38.3]} 22. Qe2 {[%clk 0:01:27.6]}
22... g6 {[%clk 0:00:31.3]} 23. Rc4 {[%clk 0:01:25.4]} 23... Rc8 {[%clk
0:00:20.3]} 24. Rdc1 {[%clk 0:01:23.5]} 24... Rd8 {[%clk 0:00:19.1]} 25. b4
{[%clk 0:01:21.8]} 25... axb4 {[%clk 0:00:20]} 26. axb4 {[%clk 0:01:22.2]} 26...
Be7 {[%clk 0:00:12.9]} 27. Rd1 {[%clk 0:01:15]} 27... Rxd1+ {[%clk 0:00:10.3]}
28. Qxd1 {[%clk 0:01:15.9]} 28... b5 {[%clk 0:00:08.6]} 29. Rc1 {[%clk
0:01:11.7]} 29... Nb6 {[%clk 0:00:08.2]} 30. Bc3 {[%clk 0:01:02.5]} 30... Nc4
{[%clk 0:00:06.9]} 31. Qd3 {[%clk 0:01:02.6]} 31... Bf8 {[%clk 0:00:03.7]} 32.
Ra1 {[%clk 0:01:00.7]} 32... Qc6 {[%clk 0:00:03.7]} 33. Ra7 {[%clk 0:00:59.2]}
33... Qd5 {[%clk 0:00:03.6]} 34. Qxd5 {[%clk 0:00:57.2]} 34... exd5 {[%clk
0:00:04.5]} 35. Rd7 {[%clk 0:00:55.5]} 35... d4 {[%clk 0:00:04.9]} 36. Bxd4
{[%clk 0:00:55.4]} 36... Nxd4 {[%clk 0:00:05.8]} 37. Rxd4 {[%clk 0:00:54.6]}
37... Nxe5 {[%clk 0:00:04.3]} 38. Rd5 {[%clk 0:00:53.9]} 38... Nc6 {[%clk
0:00:04.5]} 39. Rxb5 {[%clk 0:00:53.9]} 39... Nxb4 {[%clk 0:00:05.4]} 40. Kg2
{[%clk 0:00:54.3]} 40... Nc6 {[%clk 0:00:05.5]} 41. h4 {[%clk 0:00:54.6]} 41...
Ne7 {[%clk 0:00:06.4]} 42. Rb7 {[%clk 0:00:54.4]} 42... Kg7 {[%clk 0:00:07.3]}
43. Kf3 {[%clk 0:00:54.7]} 43... Nf5 {[%clk 0:00:07.6]} 44. Kg2 {[%clk
0:00:55.1]} 44... Bc5 {[%clk 0:00:07]} 45. Rb5 {[%clk 0:00:55.2]} 45... Be7
{[%clk 0:00:05.9]} 46. Rb7 {[%clk 0:00:55.4]} 46... Bf6 {[%clk 0:00:06.4]} 47.
Rb6 {[%clk 0:00:55.3]} 47... Ne7 {[%clk 0:00:04.4]} 48. Rb5 {[%clk 0:00:54.9]}
48... Bd4 {[%clk 0:00:03.5]} 49. Rb7 {[%clk 0:00:54.7]} 49... Nc6 {[%clk
0:00:02.3]} 50. Rc7 {[%clk 0:00:54.7]} 50... Nd8 {[%clk 0:00:02.7]} 51. Rd7
{[%clk 0:00:53.9]} 51... Ne6 {[%clk 0:00:03.6]} 52. Rb7 {[%clk 0:00:53.7]} 52...
Kf6 {[%clk 0:00:04.5]} 53. Rb5 {[%clk 0:00:53.6]} 53... Be5 {[%clk 0:00:04.2]}
54. Rb6 {[%clk 0:00:52.2]} 54... Kf5 {[%clk 0:00:02]} 55. Rb5 {[%clk 0:00:51.9]}
55... Kf6 {[%clk 0:00:02]} 56. Rb6 {[%clk 0:00:51.6]} 56... Bc7 {[%clk
0:00:02.9]} 57. Rc6 {[%clk 0:00:51.6]} 57... Bd8 {[%clk 0:00:03.6]} 58. Ra6
{[%clk 0:00:51.3]} 58... Be7 {[%clk 0:00:04.5]} 59. Kf3 {[%clk 0:00:51.4]} 59...
Kg7 {[%clk 0:00:04.4]} 60. Kg2 {[%clk 0:00:51.4]} 60... Bc5 {[%clk 0:00:03.3]}
61. Ra1 {[%clk 0:00:51.5]} 61... Kf8 {[%clk 0:00:04.2]} 62. Rd1 {[%clk
0:00:51.3]} 62... Ke7 {[%clk 0:00:05.1]} 63. Re1 {[%clk 0:00:51.3]} 63... Kf6
{[%clk 0:00:04.2]} 64. Rc1 {[%clk 0:00:50.7]} 64... Bd4 {[%clk 0:00:03.5]} 65.
Rc4 {[%clk 0:00:49.1]} 65... Ke5 {[%clk 0:00:03.6]} 66. Ra4 {[%clk 0:00:47.9]}
66... Ng7 {[%clk 0:00:03.1]} 67. Ra5+ {[%clk 0:00:47.5]} 67... Ke4 {[%clk
0:00:02.4]} 68. Rb5 {[%clk 0:00:44.1]} 68... Nf5 {[%clk 0:00:02.4]} 69. Rb7
{[%clk 0:00:43.6]} 69... Nd6 {[%clk 0:00:01.9]} 70. Re7+ {[%clk 0:00:43.8]}
70... Kd5 {[%clk 0:00:02.8]} 71. Re2 {[%clk 0:00:43.3]} 71... Bf6 {[%clk
0:00:03.7]} 72. Rd2+ {[%clk 0:00:43]} 72... Bd4 {[%clk 0:00:02.7]} 73. Ra2
{[%clk 0:00:43]} 73... Ne4 {[%clk 0:00:02.9]} 74. f3 {[%clk 0:00:41.3]} 74...
Nd6 {[%clk 0:00:02.8]} 75. Ra5+ {[%clk 0:00:40.5]} 75... Ke6 {[%clk 0:00:02.4]}
76. g4 {[%clk 0:00:39.7]} 76... Bf6 {[%clk 0:00:01.8]} 77. Kh3 {[%clk
0:00:36.8]} 77... Be7 {[%clk 0:00:01.5]} 78. gxh5 {[%clk 0:00:36.3]} 78... gxh5
{[%clk 0:00:02.4]} 79. Rxh5 {[%clk 0:00:35.8]} 79... Nf5 {[%clk 0:00:02.9]} 80.
Rh8 {[%clk 0:00:34.5]} 80... Nxh4 {[%clk 0:00:03]} 81. Kg4 {[%clk 0:00:25.9]}
81... Ng6 {[%clk 0:00:02.4]} 82. Ra8 {[%clk 0:00:25.6]} 82... Ne5+ {[%clk
0:00:02.8]} 83. Kg3 {[%clk 0:00:25.9]} 83... Bd6 {[%clk 0:00:02.4]} 84. Ra6
{[%clk 0:00:25.2]} 84... Ng6+ {[%clk 0:00:01.9]} 85. Kg4 {[%clk 0:00:24.8]}
85... Ne7 {[%clk 0:00:02.4]} 86. f4 {[%clk 0:00:24.3]} 86... Nf5 {[%clk
0:00:03.3]} 87. Ra5 {[%clk 0:00:22.5]} 87... Nd4 {[%clk 0:00:03.2]} 88. f5+
{[%clk 0:00:21.2]} 88... Kf6 {[%clk 0:00:03]} 89. Rd5 {[%clk 0:00:21.4]} 89...
Be7 {[%clk 0:00:02.5]} 90. Rxd4 {[%clk 0:00:21]} 90... Ke5 {[%clk 0:00:02.9]}
91. Ra4 {[%clk 0:00:21.2]} 91... Kf6 {[%clk 0:00:02.9]} 92. Ra5 {[%clk
0:00:20.8]} 92... Bd6 {[%clk 0:00:02.8]} 93. Rd5 {[%clk 0:00:20.4]} 93... Bc7
{[%clk 0:00:02.6]} 94. Kf3 {[%clk 0:00:21]} 94... Bb8 {[%clk 0:00:02.4]} 95. Ke4
{[%clk 0:00:21.9]} 95... Bc7 {[%clk 0:00:02.5]} 96. Rd7 {[%clk 0:00:22.2]} 96...
Bg3 {[%clk 0:00:02.7]} 97. Rd3 {[%clk 0:00:21.2]} 97... Bh2 {[%clk 0:00:02.6]}
98. Rh3 {[%clk 0:00:21.1]} 98... Bb8 {[%clk 0:00:02.7]} 99. Rh6+ {[%clk
0:00:21.6]} 99... Kg5 {[%clk 0:00:02.8]} 100. Rb6 {[%clk 0:00:21.6]} 100... Bg3
{[%clk 0:00:01.2]} 101. Ra6 {[%clk 0:00:20.4]} 101... Bh2 {[%clk 0:00:01.5]}
102. Ra7 {[%clk 0:00:16.8]} 102... Kf6 {[%clk 0:00:01.2]} 103. Ra2 {[%clk
0:00:13.7]} 1-0